fUSD/lending_fUSD_20250421
["ID","MTS","AMOUNT","RATE_DAILY","PERIOD"]
[358579025,1745273528839,-762.02,0.00048767,7]
[358579026,1745273528848,-500.0,0.00048767,7]
[358579027,1745273528857,-941.01,0.00048767,7]
[358579028,1745273528866,-500.0,0.00048767,7]
[358579029,1745273528875,-500.0,0.00048767,7]
[358579030,1745273528887,-500.0,0.00048767,7]
[358579031,1745273528896,-500.0,0.00048767,7]
[358579032,1745273528906,-500.0,0.00048767,7]
[358579033,1745273528915,-500.0,0.00048767,7]
[358579034,1745273528938,-500.0,0.00048767,7]
[358579035,1745273528956,-500.0,0.00048767,7]
[358579036,1745273528975,-500.0,0.00048767,7]
[358579037,1745273528995,-500.0,0.00048767,7]
[358579038,1745273529012,-1158.5,0.00048767,7]
[358579039,1745273529032,-772.47,0.00048767,7]
[358579040,1745273529052,-500.0,0.00048767,7]
[358579041,1745273529073,-500.0,0.00048767,7]
[358579042,1745273529091,-500.0,0.00048767,7]
[358579043,1745273529111,-500.0,0.00048767,7]
[358579044,1745273529127,-583.01,0.00048767,7]
[358579045,1745273529145,-604.43282632,0.00048767,7]
[358579046,1745273529161,-500.0,0.00048767,7]
[358579047,1745273529177,-500.0,0.00048767,7]
[358579048,1745273529195,-500.0,0.00048767,7]
[358579049,1745273529213,-973.17,0.00048767,7]
[358579050,1745273529230,-500.0,0.00048767,7]
[358579051,1745273529248,-500.0,0.00048767,7]
[358579052,1745273529263,-867.69,0.00048767,7]
[358579053,1745273529279,-901.45,0.00048767,7]
[358579054,1745273529297,-1047.72,0.00048767,7]
[358579055,1745273529312,-996.82,0.00048767,7]
[358579056,1745273529329,-1136.8,0.00048767,7]
[358579057,1745273529345,-919.49,0.00048767,7]
[358579058,1745273529361,-1393.67,0.00048767,7]
[358579059,1745273529377,-1952.74,0.00048767,7]
[358579060,1745273529393,-500.0,0.00048767,2]
[358579061,1745273529409,-500.0,0.00048767,7]
[358579062,1745273529428,-3067.74,0.00048767,7]
[358579063,1745273529443,-500.0,0.00048767,7]
[358579064,1745273529459,-1668.15,0.00048767,7]
[358579065,1745273529473,-500.0,0.00048767,7]
[358579066,1745273529490,-1022.68,0.00048767,7]
[358579067,1745273529506,-500.0,0.00048767,7]
[358579068,1745273529521,-500.0,0.00048767,7]
[358579069,1745273529536,-662.83,0.00048767,7]
[358579070,1745273529551,-500.0,0.00048767,7]
[358579071,1745273529567,-500.0,0.00048767,7]
[358579072,1745273529582,-1574.74,0.00048767,7]
[358579073,1745273529597,-500.0,0.00048767,7]
[358579074,1745273529612,-1020.13,0.00048767,7]
[358579075,1745273529627,-574.9,0.00048767,7]
[358579076,1745273529643,-981.52,0.00048767,7]
[358579077,1745273529658,-956.86,0.00048767,7]
[358579078,1745273529672,-500.0,0.00048767,7]
[358579079,1745273529688,-673.68,0.00048767,7]
[358579080,1745273529702,-500.0,0.00048767,7]
[358579081,1745273529716,-1117.56,0.00048767,7]
[358579082,1745273529730,-500.0,0.00048767,7]
[358579083,1745273529745,-500.0,0.00048767,7]
[358579084,1745273529760,-500.0,0.00048767,7]
[358579085,1745273529774,-1471.8,0.00048767,7]
[358579086,1745273529790,-500.0,0.00048767,7]
[358579087,1745273529806,-1910.22,0.00048767,7]
[358579088,1745273529820,-1450.05,0.00048767,7]
[358579089,1745273529834,-500.0,0.00048767,7]
[358579090,1745273529848,-500.0,0.00048767,7]
[358579091,1745273529862,-997.29,0.00048767,7]
[358579092,1745273529875,-500.0,0.00048767,7]
[358579093,1745273529891,-500.0,0.00048767,7]
[358579094,1745273529906,-525.77,0.00048767,7]
[358579095,1745273529920,-3115.83,0.00048767,7]
[358579096,1745273529933,-3275.5,0.00048767,7]
[358579097,1745273529948,-1074.12,0.00048767,7]
[358579098,1745273529963,-1056.06,0.00048767,7]
[358579099,1745273529978,-1721.58,0.00048767,7]
[358579100,1745273529993,-500.0,0.00048767,7]
[358579101,1745273530008,-300.0,0.00048767,7]
[358579102,1745273530024,-500.0,0.00048767,7]
[358579103,1745273530040,-500.0,0.00048767,7]
[358579104,1745273530056,-500.0,0.00048767,7]
[358579105,1745273530072,-500.0,0.00048767,7]
[358579106,1745273530087,-1422.93,0.00048767,7]
[358579107,1745273530102,-500.0,0.00048767,7]
[358579108,1745273530117,-500.0,0.00048767,7]
[358579109,1745273530132,-500.0,0.00048767,7]
[358579110,1745273530148,-834.44,0.00048767,7]
[358579111,1745273530163,-500.0,0.00048767,7]
[358579112,1745273530178,-743.09,0.00048767,7]
[358579113,1745273530193,-2831.35,0.00048767,7]
[358579114,1745273530208,-3209.48,0.00048767,7]
[358579115,1745273530223,-500.0,0.00048767,7]
[358579116,1745273530238,-500.0,0.00048767,7]
[358579117,1745273530252,-671.48,0.00048767,7]
[358579118,1745273530266,-500.0,0.00048767,7]
[358579119,1745273530281,-583.29,0.00048767,7]
[358579120,1745273530296,-973.67,0.00048767,7]
[358579121,1745273530310,-1070.05,0.00048767,7]
[358579122,1745273530326,-1375.34,0.00048767,7]
[358579123,1745273530340,-398.48741592,0.00048767,7]
[358579124,1745273530354,-7001.07,0.00048767,7]
[358579125,1745273530369,-500.0,0.00048767,7]
[358579126,1745273530383,-2437.85,0.00048767,7]
[358579127,1745273530398,-500.0,0.00048767,7]
[358579128,1745273530414,-500.0,0.00048767,7]
[358579129,1745273530428,-2289.63,0.00048767,7]
[358579130,1745273530443,-1522.45,0.00048767,7]
[358579131,1745273530457,-500.0,0.00048767,7]
[358579132,1745273530472,-829.97,0.00048767,7]
[358579133,1745273530486,-1573.28,0.00048767,7]
[358579134,1745273530501,-148396.62,0.00048767,7]
[358579135,1745273530515,-783.77,0.00048767,7]
[358579136,1745273530529,-500.0,0.00048767,7]
[358579137,1745273530545,-2454.7,0.00048767,7]
[358579138,1745273530559,-500.0,0.00048767,7]
[358579139,1745273530573,-527.57,0.00048767,7]
[358579140,1745273530588,-612.25,0.00048767,7]
[358579141,1745273530602,-1343.12,0.00048767,7]
[358579142,1745273530616,-2236.11,0.00048767,7]
[358579143,1745273530631,-500.0,0.00048767,7]
[358579144,1745273530648,-963.95,0.00048767,7]
[358579145,1745273530661,-997.67,0.00048767,7]
[358579146,1745273530676,-500.0,0.00048767,7]
[358579147,1745273530690,-1289.89,0.00048767,7]
[358579148,1745273530705,-655.96,0.00048767,7]
[358579149,1745273530719,-678.03,0.00048767,7]
[358579150,1745273530733,-569.75,0.00048767,7]
[358579151,1745273530747,-1596.74,0.00048767,7]
[358579152,1745273530760,-500.0,0.00048767,7]
[358579153,1745273530774,-3240.43,0.00048767,7]
[358579154,1745273530788,-500.0,0.00048767,7]
[358579155,1745273530802,-518.73,0.00048767,7]
[358579156,1745273530816,-500.0,0.00048767,7]
[358579157,1745273530829,-891.42,0.00048767,7]
[358579158,1745273530844,-511.37,0.00048767,7]
[358579159,1745273531115,-1959.65,0.00048767,7]
[358579160,1745273531127,-804.59,0.00048767,7]
[358579161,1745273531138,-2145.1,0.00048767,7]
[358579162,1745273531147,-500.0,0.00048767,7]
[358579163,1745273531157,-5109.84,0.00048767,7]
[358579164,1745273531167,-500.0,0.00048767,7]
[358579165,1745273531176,-1484.19,0.00048767,7]
[358579166,1745273531186,-500.0,0.00048767,7]
[358579167,1745273531196,-561.55,0.00048767,7]
[358579168,1745273531205,-500.0,0.00048767,7]
[358579169,1745273531216,-1100.11,0.00048767,7]
[358579170,1745273531226,-859.56,0.00048767,7]
[358579171,1745273531235,-500.0,0.00048767,7]
[358579172,1745273531246,-574.2,0.00048767,7]
[358579173,1745273531256,-2581.69,0.00048767,7]
[358579174,1745273531266,-596.37,0.00048767,7]
[358579175,1745273531276,-1348.97,0.00048767,7]
[358579176,1745273531286,-889.4,0.00048767,7]
[358579177,1745273531297,-948.97,0.00048767,7]
[358579178,1745273531307,-868.91,0.00048767,7]
[358579179,1745273531318,-500.0,0.00048767,7]
[358579180,1745273531328,-2009.27,0.00048767,7]
[358579181,1745273531339,-717.21,0.00048767,7]
[358579182,1745273531350,-500.0,0.00048767,7]
[358579183,1745273531360,-1570.7,0.00048767,7]
[358579184,1745273531370,-500.0,0.00048767,7]
[358579185,1745273531380,-500.0,0.00048767,7]
[358579186,1745273531390,-500.0,0.00048767,7]
[358579187,1745273531400,-1677.09,0.00048767,7]
[358579188,1745273531411,-1058.05,0.00048767,7]
[358579189,1745273531426,-500.0,0.00048767,7]
[358579190,1745273531435,-1248.18,0.00048767,7]
[358579191,1745273531445,-508.66,0.00048767,7]
[358579192,1745273531455,-500.0,0.00048767,7]
[358579193,1745273531464,-616.38,0.00048767,7]
[358579194,1745273531474,-2278.19,0.00048767,7]
[358579195,1745273531484,-2099.91,0.00048767,7]
[358579196,1745273531495,-1336.46,0.00048767,7]
[358579197,1745273531505,-500.0,0.00048767,7]
[358579198,1745273531515,-548.25985152,0.00048767,7]
[358579199,1745273531525,-500.0,0.00048767,7]
[358579200,1745273531535,-1053.78,0.00048767,7]
[358579201,1745273531545,-2998.83,0.00048767,7]
[358579202,1745273531555,-831.47,0.00048767,7]
[358579203,1745273531565,-500.0,0.00048767,7]
[358579204,1745273531575,-1357.54,0.00048767,7]
[358579205,1745273531584,-743.94,0.00048767,7]
[358579206,1745273531593,-1579.09,0.00048767,7]
[358579207,1745273531603,-500.0,0.00048767,7]
[358579208,1745273531612,-2781.12,0.00048767,7]
[358579209,1745273531622,-1075.24,0.00048767,7]
[358579210,1745273531631,-592.06,0.00048767,7]
[358579211,1745273531642,-307.4,0.00048767,7]
[358579212,1745273531651,-575.54,0.00048767,7]
[358579213,1745273531661,-1561.76,0.00048767,7]
[358579214,1745273531671,-1637.73,0.00048767,7]
[358579215,1745273531680,-1456.28,0.00048767,7]
[358579216,1745273531690,-500.0,0.00048767,7]
[358579217,1745273531699,-2605.24,0.00048767,7]
[358579218,1745273531709,-853.74,0.00048767,7]
[358579219,1745273531719,-2212.34,0.00048767,7]
[358579220,1745273531730,-2220.57,0.00048767,7]
[358579221,1745273531740,-901.27,0.00048767,7]
[358579222,1745273531750,-598.39,0.00048767,7]
[358579223,1745273531759,-578.81,0.00048767,7]
[358579224,1745273531769,-500.0,0.00048767,7]
[358579225,1745273531779,-500.0,0.00048767,7]
[358579226,1745273531789,-1275.11,0.00048767,7]
[358579227,1745273531799,-500.0,0.00048767,7]
[358579228,1745273531809,-500.0,0.00048767,7]
[358579229,1745273531819,-2355.08,0.00048767,7]
[358579230,1745273531829,-500.0,0.00048767,7]
[358579231,1745273531840,-1605.45,0.00048767,7]
[358579232,1745273531850,-2547.52,0.00048767,7]
[358579233,1745273531860,-500.0,0.00048767,7]
[358579234,1745273531870,-500.0,0.00048767,7]
[358579235,1745273531879,-1104.86,0.00048767,7]
[358579236,1745273531889,-2642.88,0.00048767,7]
[358579237,1745273531899,-737.39,0.00048767,7]
[358579238,1745273531909,-1339.26,0.00048767,7]
[358579239,1745273531919,-1748.44,0.00048767,2]
[358579240,1745273531928,-662.24,0.00048767,7]
[358579241,1745273531938,-500.0,0.00048767,7]
[358579242,1745273531948,-798.15,0.00048767,7]
[358579243,1745273531958,-1174.25,0.00048767,7]
[358579244,1745273531968,-566.9480026,0.00048767,7]
[358579245,1745273531978,-5495.09,0.00048767,7]
[358579246,1745273531988,-500.0,0.00048767,7]
[358579247,1745273531998,-500.0,0.00048767,7]
[358579248,1745273532008,-707.27,0.00048767,7]
[358579249,1745273532019,-1369.45475974,0.00048789,2]
[358579250,1745273532028,-1282.48883423,0.000488,120]
[358579251,1745273532039,-1007.82,0.000488,110]
[358579252,1745273532048,-2000.0,0.00048812,3]
[358579253,1745273532058,-700.0,0.0004887,3]
[358579254,1745273532068,-700.0,0.0004887,3]
[358579255,1745273532078,-700.0,0.0004887,3]
[358579256,1745273532088,-200.0,0.000489,76]
[358579257,1745273532097,-200.0,0.000489,76]
[358579258,1745273532107,-200.0,0.000489,76]
[358579259,1745273532116,-200.0,0.00048902,120]
[358579260,1745273532127,-1007.82,0.0004895,111]
[358579261,1745273532136,-10000.0,0.00049,30]
[358579262,1745273532146,-363.49611394,0.00049,30]
[358579263,1745273532155,-6719.17062255,0.00049,15]
[358579264,1745273532165,-900.0,0.00049,50]
[358579265,1745273532175,-950.0,0.00049,2]
[358579266,1745273532184,-13351.74163476,0.00049038,21]
[358579267,1745273532194,-222.0,0.0004905,2]
[358579268,1745273532203,-211.0,0.0004905,2]
[358579269,1745273532212,-208.0,0.0004905,2]
[358579270,1745273532221,-372.3205154,0.00049056,7]
[358579271,1745273532231,-700.0,0.0004907,3]
[358579272,1745273532240,-1070.0,0.00049094,30]
[358579273,1745273532250,-1359.798249,0.000491,112]
[358579274,1745273532259,-600.0,0.00049121,120]
[358579275,1745273532269,-151.0,0.00049122,30]
[358579276,1745273532279,-1656.741814,0.00049315,120]
[358579277,1745273532289,-500.406308,0.00049315,120]
[358579278,1745273532299,-157.564912,0.00049315,120]
[358579279,1745273532309,-157.56491,0.00049315,120]
[358579280,1745273532317,-157.564911,0.00049315,120]
[358579281,1745273532327,-151.0,0.00049315,14]
[358579282,1745273532336,-151.0,0.00049315,14]
[358579283,1745273532345,-265.056228,0.00049315,14]
[358579284,1745273532355,-151.0,0.00049315,14]
[358579285,1745273532364,-151.0,0.00049315,14]
[358579286,1745273532374,-345.12127,0.00049315,2]
[358579287,1745273532383,-345.12127,0.00049315,2]
[358579288,1745273532392,-472.835595,0.00049315,14]
[358579289,1745273532401,-151.0,0.00049315,14]
[358579290,1745273532412,-472.835595,0.00049315,14]
[358579291,1745273532423,-151.0,0.00049315,14]
[358579292,1745273532432,-151.0,0.00049315,14]
[358579293,1745273532442,-1069.34175,0.00049315,14]
[358579294,1745273532451,-156.738656,0.00049315,14]
[358579295,1745273532461,-1069.34175,0.00049315,14]
[358579296,1745273532470,-500.0,0.00049315,120]
[358579297,1745273532480,-500.0,0.00049315,120]
[358579298,1745273532489,-500.0,0.00049315,120]
[358579299,1745273532499,-500.0,0.00049315,120]
[358579300,1745273532508,-864.57,0.00049315,120]
[358579301,1745273532517,-500.0,0.00049315,120]
[358579302,1745273532527,-500.0,0.00049315,120]
[358579303,1745273532536,-269.313941,0.00049315,14]
[358579304,1745273532546,-500.0,0.00049315,120]
[358579305,1745273532555,-269.313941,0.00049315,14]
[358579306,1745273532565,-500.0,0.00049315,120]
[358579307,1745273532574,-500.0,0.00049315,120]
[358579308,1745273532583,-500.0,0.00049315,120]
[358579309,1745273532593,-674.89,0.00049315,120]
[358579310,1745273532602,-559.46327315,0.00049315,120]
[358579311,1745273532611,-500.0,0.00049315,120]
[358579312,1745273532621,-1669.69,0.00049315,120]
[358579313,1745273532631,-500.0,0.00049315,120]
[358579314,1745273532640,-164.83594,0.00049315,14]
[358579315,1745273532650,-164.83594,0.00049315,14]
[358579316,1745273532659,-153.848707,0.00049315,14]
[358579317,1745273532669,-791.37,0.00049315,120]
[358579318,1745273532678,-219.738342,0.00049315,14]
[358579319,1745273532687,-242.62,0.00049315,120]
[358579320,1745273532696,-500.0,0.00049315,120]
[358579321,1745273532705,-219.738342,0.00049315,14]
[358579322,1745273532714,-268.96941296,0.00049315,120]
[358579323,1745273532724,-1023.25,0.00049315,120]
[358579324,1745273532734,-3113.945901,0.00049315,14]
[358579325,1745273532743,-500.0,0.00049315,120]
[358579326,1745273532753,-216.349093,0.00049315,14]
[358579327,1745273532763,-1458.87,0.00049315,60]
[358579328,1745273532772,-216.349093,0.00049315,14]
[358579329,1745273532782,-500.0,0.00049315,120]
[358579330,1745273532791,-500.0,0.00049315,120]
[358579331,1745273532802,-500.0,0.00049315,7]
[358579332,1745273532811,-500.0,0.00049315,120]
[358579333,1745273532821,-500.0,0.00049315,120]
[358579334,1745273532830,-529.82,0.00049315,120]
[358579335,1745273532839,-500.0,0.00049315,120]
[358579336,1745273532849,-969.44,0.00049315,120]
[358579337,1745273532858,-500.0,0.00049315,120]
[358579338,1745273532867,-249.66817015,0.00049315,120]
[358579339,1745273532876,-174.87,0.00049315,120]
[358579340,1745273532886,-500.0,0.00049315,120]
[358579341,1745273532896,-151.0,0.00049315,14]
[358579342,1745273532905,-467.91267245,0.00049315,120]
[358579343,1745273532915,-629.509786,0.00049315,120]
[358579344,1745273532924,-160.633239,0.00049315,120]
[358579345,1745273532934,-690.93,0.00049315,120]
[358579346,1745273532943,-500.0,0.00049315,120]
[358579347,1745273532952,-471.47510692,0.00049315,120]
[358579348,1745273532962,-606.57,0.00049315,120]
[358579349,1745273532972,-593.3,0.00049315,120]
[358579350,1745273532981,-1494.4,0.00049315,120]
[358579351,1745273532991,-815.18,0.00049315,120]
[358579352,1745273532999,-2474.26,0.00049315,120]
[358579353,1745273533009,-847.59,0.00049315,120]
[358579354,1745273533019,-847.27,0.00049315,120]
[358579355,1745273533028,-1385.14,0.00049315,120]
[358579356,1745273533038,-1515.36,0.00049315,120]
[358579357,1745273533048,-710.84,0.00049315,120]
[358579358,1745273533058,-585.36,0.00049315,120]
[358579359,1745273533068,-540.95,0.00049315,120]
[358579360,1745273533078,-500.0,0.00049315,120]
[358579361,1745273533088,-500.0,0.00049315,120]
[358579362,1745273533098,-2340.33,0.00049315,120]
[358579363,1745273533108,-500.0,0.00049315,120]
[358579364,1745273533117,-500.0,0.00049315,120]
[358579365,1745273533127,-500.0,0.00049315,120]
[358579366,1745273533137,-623.44,0.00049315,120]
[358579367,1745273533147,-577.17061412,0.00049315,120]
[358579368,1745273533157,-500.0,0.00049315,120]
[358579369,1745273533167,-826.96,0.00049315,120]
[358579370,1745273533176,-500.0,0.00049315,120]
[358579371,1745273533185,-500.0,0.00049315,120]
[358579372,1745273533195,-500.0,0.00049315,120]
[358579373,1745273533204,-519.36,0.00049315,120]
[358579374,1745273533214,-1297.18,0.00049315,120]
[358579375,1745273533224,-500.0,0.00049315,120]
[358579376,1745273533234,-500.0,0.00049315,120]
[358579377,1745273533243,-514.13,0.00049315,120]
[358579378,1745273533253,-500.0,0.00049315,120]
[358579379,1745273533263,-980.71,0.00049315,120]
[358579380,1745273533272,-533.96908051,0.00049315,120]
[358579381,1745273533282,-500.0,0.00049315,120]
[358579382,1745273533292,-500.0,0.00049315,120]
[358579383,1745273533301,-706.63,0.00049315,120]
[358579384,1745273533312,-579.09,0.00049315,120]
[358579385,1745273533322,-858.69,0.00049315,120]
[358579386,1745273533333,-881.75,0.00049315,120]
[358579387,1745273533342,-500.0,0.00049315,120]
[358579388,1745273533351,-711.53,0.00049315,120]
[358579389,1745273533361,-884.65,0.00049315,120]
[358579390,1745273533370,-904.67,0.00049315,120]
[358579391,1745273533380,-500.0,0.00049315,120]
[358579392,1745273533389,-1183.26,0.00049315,120]
[358579393,1745273533399,-546.21,0.00049315,120]
[358579394,1745273533411,-1290.34,0.00049315,120]
[358579395,1745273533422,-863.91,0.00049315,120]
[358579396,1745273533432,-1668.61,0.00049315,120]
[358579397,1745273533442,-1419.16,0.00049315,120]
[358579398,1745273533452,-500.0,0.00049315,120]
[358579399,1745273533462,-1001.34,0.00049315,120]
[358579400,1745273533472,-500.0,0.00049315,120]
[358579401,1745273533481,-500.0,0.00049315,120]
[358579402,1745273533493,-500.0,0.00049315,120]
[358579403,1745273533503,-500.0,0.00049315,120]
[358579404,1745273533513,-2387.71,0.00049315,120]
[358579405,1745273533523,-500.0,0.00049315,120]
[358579406,1745273533533,-514.22434345,0.00049315,120]
[358579407,1745273533542,-500.0,0.00049315,120]
[358579408,1745273533551,-1099.51,0.00049315,120]
[358579409,1745273533564,-657.93,0.00049315,120]
[358579410,1745273533574,-500.0,0.00049315,120]
[358579411,1745273533584,-786.17,0.00049315,120]
[358579412,1745273533594,-500.0,0.00049315,120]
[358579413,1745273533603,-1738.61,0.00049315,120]
[358579414,1745273533613,-1177.97,0.00049315,120]
[358579415,1745273533622,-1533.1,0.00049315,120]
[358579416,1745273533632,-500.0,0.00049315,120]
[358579417,1745273533643,-500.0,0.00049315,120]
[358579418,1745273533652,-601.4,0.00049315,120]
[358579419,1745273533661,-500.0,0.00049315,120]
[358579420,1745273533671,-604.48,0.00049315,120]
[358579421,1745273533680,-500.0,0.00049315,120]
[358579422,1745273533689,-947.57,0.00049315,120]
[358579423,1745273533698,-500.0,0.00049315,120]
[358579424,1745273533708,-1198.33,0.00049315,120]
[358579425,1745273533716,-779.43,0.00049315,120]
[358579426,1745273533726,-927.9,0.00049315,120]
[358579427,1745273533735,-580.05,0.00049315,120]
[358579428,1745273533745,-500.0,0.00049315,120]
[358579429,1745273533755,-500.0,0.00049315,120]
[358579430,1745273533765,-1505.54,0.00049315,120]
[358579431,1745273533774,-429.23338226,0.00049315,120]
[358579432,1745273533784,-635.74,0.00049315,120]
[358579433,1745273533794,-729.68,0.00049315,120]
[358579434,1745273533803,-500.0,0.00049315,120]
[358579435,1745273533813,-1567.41,0.00049315,120]
[358579436,1745273533823,-500.0,0.00049315,7]
[358579437,1745273533832,-512.85969375,0.00049315,7]
[358579438,1745273533842,-1953.23,0.00049315,120]
[358579439,1745273533851,-1438.84,0.00049315,120]
[358579440,1745273533861,-2454.44,0.00049315,120]
[358579441,1745273533871,-500.0,0.00049315,30]
[358579442,1745273533880,-951.19,0.00049315,120]
[358579443,1745273533890,-207.06719502,0.00049315,120]
[358579444,1745273533899,-500.0,0.00049315,120]
[358579445,1745273533909,-500.0,0.00049315,120]
[358579446,1745273533919,-500.0,0.00049315,120]
[358579447,1745273533929,-500.0,0.00049315,120]
[358579448,1745273534111,-1772.65,0.00049315,120]
[358579449,1745273534122,-500.0,0.00049315,120]
[358579450,1745273534132,-1520.58,0.00049315,120]
[358579451,1745273534142,-500.0,0.00049315,30]
[358579452,1745273534152,-1100.31,0.00049315,120]
[358579453,1745273534162,-1134.03,0.00049315,120]
[358579454,1745273534172,-2906.42,0.00049315,120]
[358579455,1745273534183,-765.04,0.00049315,120]
[358579456,1745273534193,-500.0,0.00049315,120]
[358579457,1745273534202,-658.02,0.00049315,120]
[358579458,1745273534212,-500.0,0.00049315,120]
[358579459,1745273534223,-500.0,0.00049315,120]
[358579460,1745273534233,-702.96,0.00049315,120]
[358579461,1745273534243,-500.0,0.00049315,120]
[358579462,1745273534253,-687.2,0.00049315,120]
[358579463,1745273534264,-1543.41,0.00049315,120]
[358579464,1745273534274,-1256.12,0.00049315,120]
[358579465,1745273534284,-500.0,0.00049315,120]
[358579466,1745273534294,-500.0,0.00049315,120]
[358579467,1745273534304,-621.72,0.00049315,120]
[358579468,1745273534314,-500.0,0.00049315,120]
[358579469,1745273534325,-500.0,0.00049315,120]
[358579470,1745273534335,-506.68,0.00049315,120]
[358579471,1745273534345,-500.0,0.00049315,120]
[358579472,1745273534354,-1317.58,0.00049315,120]
[358579473,1745273534365,-500.0,0.00049315,120]
[358579474,1745273534375,-498.87563878,0.00049315,120]
[358579475,1745273534385,-685.99,0.00049315,120]
[358579476,1745273534395,-821.12,0.00049315,120]
[358579477,1745273534405,-797.08,0.00049315,120]
[358579478,1745273534419,-1948.41,0.00049315,120]
[358579479,1745273534430,-1659.14,0.00049315,120]
[358579480,1745273534440,-1048.75,0.00049315,120]
[358579481,1745273534450,-1221.11,0.00049315,120]
[358579482,1745273534459,-328.32,0.00049315,120]
[358579483,1745273534469,-1335.52,0.00049315,120]
[358579484,1745273534479,-609.00985524,0.00049315,120]
[358579485,1745273534489,-816.95,0.00049315,120]
[358579486,1745273534498,-672.04,0.00049315,120]
[358579487,1745273534509,-500.0,0.00049315,120]
[358579488,1745273534518,-1122.27,0.00049315,120]
[358579489,1745273534528,-500.0,0.00049315,120]
[358579490,1745273534538,-500.0,0.00049315,120]
[358579491,1745273534547,-583.75,0.00049315,120]
[358579492,1745273534557,-762.02,0.00049315,120]
[358579493,1745273534566,-941.01,0.00049315,120]
[358579494,1745273534576,-500.0,0.00049315,120]
[358579495,1745273534587,-500.0,0.00049315,120]
[358579496,1745273534598,-242.18007594,0.00049315,120]
[358579497,1745273534608,-500.0,0.00049315,120]
[358579498,1745273534618,-500.0,0.00049315,120]
[358579499,1745273534628,-500.0,0.00049315,120]
[358579500,1745273534638,-500.0,0.00049315,120]
[358579501,1745273534648,-500.0,0.00049315,120]
[358579502,1745273534657,-500.0,0.00049315,120]
[358579503,1745273534667,-500.0,0.00049315,120]
[358579504,1745273534677,-1158.5,0.00049315,120]
[358579505,1745273534686,-772.47,0.00049315,120]
[358579506,1745273534696,-500.0,0.00049315,120]
[358579507,1745273534706,-500.0,0.00049315,120]
[358579508,1745273534716,-500.0,0.00049315,120]
[358579509,1745273534726,-500.0,0.00049315,120]
[358579510,1745273534735,-583.01,0.00049315,120]
[358579511,1745273534745,-500.0,0.00049315,120]
[358579512,1745273534755,-500.0,0.00049315,120]
[358579513,1745273534765,-500.0,0.00049315,120]
[358579514,1745273534774,-973.17,0.00049315,120]
[358579515,1745273534785,-500.0,0.00049315,120]
[358579516,1745273534795,-500.0,0.00049315,120]
[358579517,1745273534805,-867.69,0.00049315,120]
[358579518,1745273534815,-901.45,0.00049315,120]
[358579519,1745273534824,-1047.72,0.00049315,120]
[358579520,1745273534834,-996.82,0.00049315,120]
[358579521,1745273534844,-1136.8,0.00049315,120]
[358579522,1745273534854,-919.49,0.00049315,120]
[358579523,1745273534863,-1393.67,0.00049315,120]
[358579524,1745273534873,-1952.74,0.00049315,120]